[Event "FIDE WYCC Girls U18 2023"]
[Site "Montesilvano"]
[Date "2023.11.23"]
[Round "10.21"]
[White "Soares, Sara Joana De Moura "]
[Black "Bhagyashree Patil"]
[Result "0-1"]
[ECO "D35"]
[WhiteElo "1772"]
[BlackElo "1830"]
[Annotator "NA RC"]
[PlyCount "58"]
[EventDate "2023.11.13"]
[EventType "swiss"]
[EventCountry "ITA"]
[SourceTitle "playchess.com"]
[Source "ChessBase"]
[SourceQuality "1"]
[TimeControl "40/5400+30:1800+30"]

1. d4 {[%emt 0:00:02]} d5 {[%emt 0:05:14]} 2. c4 {[%emt 0:00:40]} e6 {[%emt 0:00:04]} 3. Nc3 {[%emt 0:00:14]} Nf6 {[%emt 0:00:04]} 4. cxd5 {[%emt 0:00:07]} exd5 {[%emt 0:00:03]} 5. Bg5 {[%emt 0:00:21]} Be7 {[%emt 0:00:19]} 6. e3 {[%emt 0:00:28]} c6 {[%emt 0:00:56]} 7. Bd3 {[%emt 0:00:47]} Nbd7 {[%emt 0:00:46]} 8. Qc2 {[%emt 0:00:54]} Nf8 {[%emt 0:01:34]} 9. h3 {[%emt 0:01:36]} Ne6 {[%emt 0:02:50]} 10. Bh4 {[%emt 0:06:11]} g6 {[%emt 0:01:01]} 11. Nf3 {[%emt 0:00:24]} O-O {[%emt 0:00:11]} 12. O-O {[%emt 0:00:27]} Ng7 {[%emt 0:01:39]} 13. a3 {[%emt 0:03:44]} Nf5 {[%emt 0:04:18]} 14. Rab1 {[%emt 0:01:55]} Nxh4 {[%emt 0:15:09]} 15. Nxh4 {[%emt 0:00:01]} Nh5 {[%emt 0:01:28]} 16. Nf3 {[%emt 0:04:41]} Bd6 {[%emt 0:01:38]} 17. b4 {[%emt 0:03:14]} Qf6 {[%emt 0:00:52]} 18. Nd2 {[%emt 0:12:40]} Re8 {[%emt 0:05:53]} 19. a4 {[%emt 0:05:14]} Kh8 {[%emt 0:07:14]} 20. Qd1 {[%emt 0:05:28]} Bc7 {[%emt 0:06:09]} 21. b5 {[%emt 0:06:07]} Qd6 {[%emt 0:05:24]} 22. Nf3 {[%emt 0:00:16]} Bd7 {[%emt 0:00:41]} 23. bxc6 {[%emt 0:02:46]} bxc6 {[%emt 0:00:04]} 24. Re1 {[%emt 0:08:15]} Re7 {[%emt 0:05:21]} 25. Qc2 {[%emt 0:10:49]} Qf6 {[%emt 0:03:25]} 26. Nd2 {[%emt 0:02:36]} Rae8 {[%emt 0:03:35]} 27. Rb7 {[%emt 0:03:36]} Bxh3 {[%emt 0:03:49]} 28. gxh3 {[%emt 0:03:50]} Bh2+ {[%emt 0:00:14]} 29. Kxh2 {[%emt 0:00:13]} Qxf2+ {[%emt 0:00:09]} 0-1

[Event "FIDE WYCC Girls U18 2023"]
[Site "Montesilvano"]
[Date "2023.11.23"]
[Round "10.22"]
[White "Lindstad, Livia"]
[Black "Swara Lakshmi S Nair"]
[Result "0-1"]
[ECO "B92"]
[WhiteElo "1848"]
[BlackElo "1659"]
[Annotator "NA RC"]
[PlyCount "88"]
[EventDate "2023.11.13"]
[EventType "swiss"]
[EventCountry "ITA"]
[SourceTitle "playchess.com"]
[Source "ChessBase"]
[SourceQuality "1"]
[TimeControl "40/5400+30:1800+30"]

1. e4 {[%emt 0:00:02]} c5 {[%emt 0:07:33]} 2. Nf3 {[%emt 0:00:22]} d6 {[%emt 0:00:04]} 3. d4 {[%emt 0:00:19]} cxd4 {[%emt 0:00:13]} 4. Nxd4 {[%emt 0:00:09]} Nf6 {[%emt 0:00:03]} 5. Nc3 {[%emt 0:00:15]} a6 {[%emt 0:00:05]} 6. Be2 {[%emt 0:00:13]} e5 {[%emt 0:00:04]} 7. Nb3 {[%emt 0:00:27]} Be7 {[%emt 0:00:08]} 8. O-O {[%emt 0:00:39]} O-O {[%emt 0:00:08]} 9. Be3 {[%emt 0:01:00]} Nc6 {[%emt 0:00:26]} 10. Qd2 {[%emt 0:01:37]} Be6 {[%emt 0:16:46]} 11. Bf3 {[%emt 0:03:17]} Rc8 {[%emt 0:07:51]} 12. Rfc1 {[%emt 0:07:04]} b5 {[%emt 0:00:57]} 13. Nd5 {[%emt 0:08:01]} Bxd5 {[%emt 0:05:27]} 14. exd5 {[%emt 0:00:09]} Nb8 {[%emt 0:00:04]} 15. a4 {[%emt 0:03:10]} bxa4 {[%emt 0:09:39]} 16. Rxa4 {[%emt 0:02:50]} Qd7 {[%emt 0:00:43]} 17. Ra2 {[%emt 0:10:27]} Qf5 {[%emt 0:23:35]} 18. Be2 {[%emt 0:13:23]} Qe4 {[%emt 0:05:15]} 19. c4 {[%emt 0:07:06]} Qg6 {[%emt 0:02:00]} 20. Ba7 {[%emt 0:06:01]} Nfd7 {[%emt 0:09:38]} 21. Qd3 {[%emt 0:03:53]} f5 {[%emt 0:00:27]} 22. Qh3 {[%emt 0:04:13]} Rc7 {[%emt 0:03:11]} 23. Bxb8 {[%emt 0:04:14]} Nxb8 {[%emt 0:00:09]} 24. f4 {[%emt 0:05:00]} Bf6 {[%emt 0:02:37]} 25. fxe5 {[%emt 0:03:07]} Bxe5 {[%emt 0:00:22]} 26. Rf1 {[%emt 0:03:42]} Qg5 {[%emt 0:04:11]} 27. Bd3 {[%emt 0:01:57]} g6 {[%emt 0:00:07]} 28. Nc1 {[%emt 0:01:28]} Rb7 {[%emt 0:01:03]} 29. Ne2 {[%emt 0:03:39]} Rxb2 {[%emt 0:01:13]} 30. Rxb2 {[%emt 0:00:23]} Bxb2 {[%emt 0:00:03]} 31. Nf4 {[%emt 0:00:16]} Rf7 {[%emt 0:00:27]} 32. Rb1 {[%emt 0:02:39]} Qxf4 {[%emt 0:00:12]} 33. Qg3 {[%emt 0:02:30]} Qxg3 {[%emt 0:00:21]} 34. hxg3 {[%emt 0:00:01]} Bd4+ {[%emt 0:00:09]} 35. Kf1 {[%emt 0:00:09]} Nd7 {[%emt 0:00:04]} 36. Bc2 {[%emt 0:00:51]} Ne5 {[%emt 0:00:21]} 37. Rb4 {[%emt 0:01:21]} Rc7 {[%emt 0:01:00]} 38. Bb3 {[%emt 0:00:37]} Kf7 {[%emt 0:00:11]} 39. Ra4 {[%emt 0:01:06]} Rb7 {[%emt 0:00:10]} 40. Ba2 {[%emt 0:00:00]} Rb2 {[%emt 0:00:00]} 41. c5 {[%emt 0:01:30]} Bxc5 {[%emt 0:01:01]} 42. Rxa6 {[%emt 0:00:37]} Rf2+ {[%emt 0:00:08]} 43. Ke1 {[%emt 0:00:15]} Nd3+ {[%emt 0:00:10]} 44. Kd1 {[%emt 0:00:02]} Be3 {[%emt 0:00:09]} 0-1

[Event "FIDE WYCC Girls U18 2023"]
[Site "Montesilvano"]
[Date "2023.11.23"]
[Round "10.23"]
[White "Sipos, Stefania"]
[Black "Sukyte, Kotryna"]
[Result "0-1"]
[ECO "B43"]
[WhiteElo "1932"]
[BlackElo "1651"]
[Annotator "NA RC"]
[PlyCount "168"]
[EventDate "2023.11.13"]
[EventType "swiss"]
[EventCountry "ITA"]
[SourceTitle "playchess.com"]
[Source "ChessBase"]
[SourceQuality "1"]
[TimeControl "40/5400+30:1800+30"]

1. e4 {[%emt 0:00:02]} c5 {[%emt 0:00:05]} 2. Nf3 {[%emt 0:00:05]} a6 {[%emt 0:00:07]} 3. Nc3 {[%emt 0:00:20]} e6 {[%emt 0:00:30]} 4. d4 {[%emt 0:00:48]} cxd4 {[%emt 0:00:38]} 5. Nxd4 {[%emt 0:00:16]} b5 {[%emt 0:01:00]} 6. g3 {[%emt 0:03:08]} Bb7 {[%emt 0:01:28]} 7. Bg2 {[%emt 0:00:36]} b4 {[%emt 0:03:01]} 8. Na4 {[%emt 0:09:39]} Qa5 {[%emt 0:07:53]} 9. c4 {[%emt 0:03:49]} Nf6 {[%emt 0:04:50]} 10. O-O {[%emt 0:04:11]} Nc6 {[%emt 0:12:00]} 11. b3 {[%emt 0:05:12]} Be7 {[%emt 0:05:36]} 12. Re1 {[%emt 0:07:53]} O-O {[%emt 0:11:42]} 13. e5 {[%emt 0:08:19]} Ne8 {[%emt 0:02:38]} 14. Nf3 {[%emt 0:26:42]} d6 {[%emt 0:13:50]} 15. Be3 {[%emt 0:03:29]} Qc7 {[%emt 0:02:01]} 16. Bb6 {[%emt 0:03:01]} Qc8 {[%emt 0:01:35]} 17. exd6 {[%emt 0:01:37]} Nxd6 {[%emt 0:00:49]} 18. Qd3 {[%emt 0:06:30]} Rb8 {[%emt 0:08:34]} 19. Rad1 {[%emt 0:02:25]} Ba8 {[%emt 0:03:02]} 20. h4 {[%emt 0:04:12]} h6 {[%emt 0:06:03]} 21. Bh3 {[%emt 0:03:33]} Ne8 {[%emt 0:02:03]} 22. Bc5 {[%emt 0:03:24]} Bxc5 {[%emt 0:01:38]} 23. Nxc5 {[%emt 0:00:05]} Nf6 {[%emt 0:00:36]} 24. Nxe6 {[%emt 0:00:52]} Re8 {[%emt 0:01:30]} 25. Nf4 {[%emt 0:00:42]} Qc7 {[%emt 0:00:48]} 26. Bg2 {[%emt 0:00:50]} Rxe1+ {[%emt 0:01:56]} 27. Rxe1 {[%emt 0:00:16]} Rd8 {[%emt 0:00:18]} 28. Qf5 {[%emt 0:01:41]} Qd6 {[%emt 0:04:35]} 29. Nh5 {[%emt 0:00:43]} Nxh5 {[%emt 0:00:51]} 30. Qxh5 {[%emt 0:00:03]} Qd3 {[%emt 0:00:50]} 31. Ne5 {[%emt 0:00:55]} Nxe5 {[%emt 0:00:19]} 32. Qxe5 {[%emt 0:00:19]} Bxg2 {[%emt 0:00:32]} 33. Kxg2 {[%emt 0:00:04]} Qd7 {[%emt 0:02:47]} 34. Qe4 {[%emt 0:00:28]} Qd2 {[%emt 0:00:33]} 35. Re2 {[%emt 0:00:43]} Qd7 {[%emt 0:00:12]} 36. Qe7 {[%emt 0:00:54]} Qxe7 {[%emt 0:00:33]} 37. Rxe7 {[%emt 0:00:15]} Rd2 {[%emt 0:00:06]} 38. Re4 {[%emt 0:00:49]} Rxa2 {[%emt 0:00:16]} 39. c5 {[%emt 0:00:23]} Rc2 {[%emt 0:00:19]} 40. Rxb4 {[%emt 0:00:00]} Rxc5 {[%emt 0:00:00]} 41. Rb6 {[%emt 0:04:56]} Ra5 {[%emt 0:06:02]} 42. Kf3 {[%emt 0:02:40]} g6 {[%emt 0:02:16]} 43. Ke4 {[%emt 0:03:15]} Kg7 {[%emt 0:00:54]} 44. Kd4 {[%emt 0:03:57]} Ra2 {[%emt 0:02:56]} 45. f3 {[%emt 0:04:03]} Rd2+ {[%emt 0:06:06]} 46. Ke3 {[%emt 0:03:21]} Ra2 {[%emt 0:01:03]} 47. g4 {[%emt 0:08:41]} Ra1 {[%emt 0:02:37]} 48. g5 {[%emt 0:02:28]} hxg5 {[%emt 0:00:55]} 49. hxg5 {[%emt 0:00:05]} Re1+ {[%emt 0:01:44]} 50. Kd4 {[%emt 0:00:59]} Rd1+ {[%emt 0:00:40]} 51. Kc4 {[%emt 0:00:50]} Rc1+ {[%emt 0:01:37]} 52. Kb4 {[%emt 0:00:29]} Ra1 {[%emt 0:00:10]} 53. Rf6 {[%emt 0:00:30]} Ra2 {[%emt 0:00:26]} 54. f4 {[%emt 0:00:24]} Ra1 {[%emt 0:00:22]} 55. Kc5 {[%emt 0:00:24]} Rc1+ {[%emt 0:00:35]} 56. Kd4 {[%emt 0:01:07]} Rd1+ {[%emt 0:00:33]} 57. Kc3 {[%emt 0:00:27]} Ra1 {[%emt 0:00:19]} 58. Kb2 {[%emt 0:00:27]} Ra5 {[%emt 0:00:14]} 59. Kc3 {[%emt 0:00:38]} Ra2 {[%emt 0:00:49]} 60. b4 {[%emt 0:00:41]} Ra1 {[%emt 0:00:36]} 61. Kd4 {[%emt 0:00:42]} Rd1+ {[%emt 0:01:13]} 62. Kc5 {[%emt 0:00:21]} Rc1+ {[%emt 0:00:24]} 63. Kd6 {[%emt 0:00:31]} Rc4 {[%emt 0:01:18]} 64. Ke7 {[%emt 0:00:41]} Re4+ {[%emt 0:00:11]} 65. Kd7 {[%emt 0:00:29]} Rxb4 {[%emt 0:00:13]} 66. f5 {[%emt 0:00:32]} a5 {[%emt 0:05:33]} 67. fxg6 {[%emt 0:00:29]} fxg6 {[%emt 0:00:12]} 68. Re6 {[%emt 0:00:32]} Rd4+ {[%emt 0:01:17]} 69. Ke8 {[%emt 0:00:24]} Rd5 {[%emt 0:00:51]} 70. Ra6 {[%emt 0:00:35]} Rxg5 {[%emt 0:00:26]} 71. Ra7+ {[%emt 0:00:13]} Kh6 {[%emt 0:00:18]} 72. Ra6 {[%emt 0:00:24]} Rf5 {[%emt 0:00:51]} 73. Ke7 {[%emt 0:00:32]} Kg5 {[%emt 0:00:48]} 74. Kd7 {[%emt 0:00:31]} Kh5 {[%emt 0:00:30]} 75. Ke6 {[%emt 0:00:26]} Rb5 {[%emt 0:00:10]} 76. Kf6 {[%emt 0:00:29]} g5 {[%emt 0:00:08]} 77. Ra8 {[%emt 0:00:15]} Kg4 {[%emt 0:00:15]} 78. Ke6 {[%emt 0:01:10]} Kg3 {[%emt 0:00:23]} 79. Rc8 {[%emt 0:00:27]} g4 {[%emt 0:00:34]} 80. Rc3+ {[%emt 0:00:13]} Kh2 {[%emt 0:00:44]} 81. Rc2+ {[%emt 0:00:18]} Kh3 {[%emt 0:00:12]} 82. Rc8 {[%emt 0:00:51]} g3 {[%emt 0:00:18]} 83. Rh8+ {[%emt 0:00:14]} Kg4 {[%emt 0:00:14]} 84. Kf6 {[%emt 0:00:49]} Rf5+ {[%emt 0:00:13]} 0-1

[Event "FIDE WYCC Girls U18 2023"]
[Site "Montesilvano"]
[Date "2023.11.23"]
[Round "10.24"]
[White "Belattar, Ines"]
[Black "Katter, Katharina"]
[Result "1/2-1/2"]
[ECO "D00"]
[WhiteElo "1623"]
[BlackElo "1887"]
[Annotator "NA RC"]
[PlyCount "50"]
[EventDate "2023.11.13"]
[EventType "swiss"]
[EventCountry "ITA"]
[SourceTitle "playchess.com"]
[Source "ChessBase"]
[SourceQuality "1"]
[TimeControl "40/5400+30:1800+30"]

1. d4 {[%emt 0:00:30]} d5 {[%emt 0:03:13]} 2. Bf4 {[%emt 0:00:00]} Nf6 {[%emt 0:00:43]} 3. e3 {[%emt 0:00:00]} c5 {[%emt 0:00:16]} 4. c3 {[%emt 0:00:00]} Nc6 {[%emt 0:00:26]} 5. Nd2 {[%emt 0:00:01]} e6 {[%emt 0:00:39]} 6. Ngf3 {[%emt 0:01:04]} Nh5 {[%emt 0:00:36]} 7. Be5 {[%emt 0:03:13]} f6 {[%emt 0:00:49]} 8. Bg3 {[%emt 0:01:50]} Nxg3 {[%emt 0:00:26]} 9. hxg3 {[%emt 0:00:05]} Qb6 {[%emt 0:00:16]} 10. Qc2 {[%emt 0:01:07]} Bd7 {[%emt 0:16:55]} 11. Rxh7 {[%emt 0:09:44]} Rxh7 {[%emt 0:01:02]} 12. Qxh7 {[%emt 0:07:16]} O-O-O {[%emt 0:00:22]} 13. Qc2 {[%emt 0:02:30]} e5 {[%emt 0:00:47]} 14. dxc5 {[%emt 0:06:12]} Bxc5 {[%emt 0:01:59]} 15. Nb3 {[%emt 0:00:48]} Bd6 {[%emt 0:01:59]} 16. Qg6 {[%emt 0:01:45]} a5 {[%emt 0:11:05]} 17. Qxg7 {[%emt 0:09:29]} a4 {[%emt 0:01:01]} 18. Qxf6 {[%emt 0:01:11]} Nb4 {[%emt 0:20:20]} 19. Nbd4 {[%emt 0:18:00]} exd4 {[%emt 0:13:07]} 20. Nxd4 {[%emt 0:00:08]} Re8 {[%emt 0:01:11]} 21. Qg5 {[%emt 0:01:50]} Re5 {[%emt 0:12:41]} 22. Qg8+ {[%emt 0:03:41]} Re8 {[%emt 0:00:08]} 23. Qg5 {[%emt 0:00:44]} Re5 {[%emt 0:06:51]} 24. Qg8+ {[%emt 0:00:51]} Re8 {[%emt 0:00:06]} 25. Qg5 {[%emt 0:01:17]} Re5 {[%emt 0:03:05]} 1/2-1/2

[Event "FIDE WYCC Girls U18 2023"]
[Site "Montesilvano"]
[Date "2023.11.23"]
[Round "10.25"]
[White "Hoanca, Alexia-Ioana"]
[Black "Largo, Franchesca"]
[Result "0-1"]
[ECO "B07"]
[WhiteElo "1830"]
[BlackElo "1658"]
[Annotator "NA RC"]
[PlyCount "110"]
[EventDate "2023.11.13"]
[EventType "swiss"]
[EventCountry "ITA"]
[SourceTitle "playchess.com"]
[Source "ChessBase"]
[SourceQuality "1"]
[TimeControl "40/5400+30:1800+30"]

1. e4 {[%emt 0:00:03]} d6 {[%emt 0:02:36]} 2. d4 {[%emt 0:01:08]} Nf6 {[%emt 0:00:27]} 3. Nc3 {[%emt 0:00:34]} e5 {[%emt 0:01:06]} 4. Nf3 {[%emt 0:02:24]} exd4 {[%emt 0:01:11]} 5. Nxd4 {[%emt 0:00:07]} Be7 {[%emt 0:00:50]} 6. Bc4 {[%emt 0:06:23]} O-O {[%emt 0:01:00]} 7. O-O {[%emt 0:01:00]} Nc6 {[%emt 0:02:45]} 8. Re1 {[%emt 0:05:47]} Ne5 {[%emt 0:09:34]} 9. Bf1 {[%emt 0:02:31]} Re8 {[%emt 0:07:16]} 10. h3 {[%emt 0:07:59]} Bf8 {[%emt 0:00:08]} 11. f4 {[%emt 0:15:46]} Ned7 {[%emt 0:13:06]} 12. g4 {[%emt 0:06:17]} Nc5 {[%emt 0:21:58]} 13. Bg2 {[%emt 0:04:53]} a5 {[%emt 0:06:42]} 14. g5 {[%emt 0:15:15]} Nfd7 {[%emt 0:00:08]} 15. h4 {[%emt 0:01:32]} c6 {[%emt 0:14:50]} 16. h5 {[%emt 0:10:21]} Nb6 {[%emt 0:08:17]} 17. f5 {[%emt 0:08:05]} Nc4 {[%emt 0:01:50]} 18. Bf4 {[%emt 0:06:32]} Ne5 {[%emt 0:01:16]} 19. Re3 {[%emt 0:02:10]} b5 {[%emt 0:02:06]} 20. Rg3 {[%emt 0:00:55]} b4 {[%emt 0:01:11]} 21. Nce2 {[%emt 0:00:23]} Qc7 {[%emt 0:01:36]} 22. Qe1 {[%emt 0:00:36]} Ned7 {[%emt 0:00:59]} 23. g6 {[%emt 0:00:35]} Nxe4 {[%emt 0:00:31]} 24. gxf7+ {[%emt 0:00:15]} Kxf7 {[%emt 0:00:09]} 25. Bxe4 {[%emt 0:00:14]} Rxe4 {[%emt 0:00:12]} 26. Qf2 {[%emt 0:00:45]} Nf6 {[%emt 0:00:46]} 27. Qf3 {[%emt 0:00:40]} h6 {[%emt 0:00:48]} 28. Ne6 {[%emt 0:00:37]} Bxe6 {[%emt 0:00:08]} 29. fxe6+ {[%emt 0:00:06]} Rxe6 {[%emt 0:00:31]} 30. Kh1 {[%emt 0:00:30]} Rae8 {[%emt 0:00:46]} 31. Nd4 {[%emt 0:00:25]} Re1+ {[%emt 0:00:32]} 32. Rxe1 {[%emt 0:00:08]} Rxe1+ {[%emt 0:00:07]} 33. Kg2 {[%emt 0:00:21]} c5 {[%emt 0:00:38]} 34. Nf5 {[%emt 0:00:28]} Qd7 {[%emt 0:00:34]} 35. Ne3 {[%emt 0:01:18]} Qe6 {[%emt 0:00:30]} 36. Rg6 {[%emt 0:00:41]} d5 {[%emt 0:00:50]} 37. Kf2 {[%emt 0:00:28]} Rb1 {[%emt 0:00:30]} 38. Kg2 {[%emt 0:00:38]} Qe4 {[%emt 0:00:27]} 39. Qxe4 {[%emt 0:00:31]} dxe4 {[%emt 0:00:09]} 40. Be5 {[%emt 0:00:00]} Re1 {[%emt 0:00:00]} 41. Kf2 {[%emt 0:03:05]} Rh1 {[%emt 0:05:26]} 42. Bxf6 {[%emt 0:02:38]} gxf6 {[%emt 0:00:14]} 43. Rg4 {[%emt 0:00:23]} Rxh5 {[%emt 0:01:46]} 44. Rxe4 {[%emt 0:00:07]} Bd6 {[%emt 0:03:38]} 45. Nc4 {[%emt 0:05:54]} Bc7 {[%emt 0:03:27]} 46. Kg1 {[%emt 0:05:13]} Rh2 {[%emt 0:03:03]} 47. Nxa5 {[%emt 0:01:23]} Rxc2 {[%emt 0:00:14]} 48. Nc4 {[%emt 0:00:54]} f5 {[%emt 0:00:18]} 49. Rh4 {[%emt 0:00:17]} Bg3 {[%emt 0:00:26]} 50. Rh3 {[%emt 0:00:51]} Rxc4 {[%emt 0:01:42]} 51. Rxg3 {[%emt 0:00:07]} Rg4 {[%emt 0:01:25]} 52. Kf2 {[%emt 0:00:07]} Rxg3 {[%emt 0:00:15]} 53. Kxg3 {[%emt 0:00:03]} c4 {[%emt 0:00:04]} 54. a4 {[%emt 0:00:24]} c3 {[%emt 0:01:11]} 55. a5 {[%emt 0:00:52]} cxb2 {[%emt 0:00:13]} 0-1

[Event "FIDE WYCC Girls U18 2023"]
[Site "Montesilvano"]
[Date "2023.11.23"]
[Round "10.26"]
[White "Zubova, Darja"]
[Black "Menon, Gauri"]
[Result "*"]
[WhiteElo "1582"]
[BlackElo "1821"]
[Annotator "NA RC"]
[PlyCount "50"]
[EventDate "2023.11.13"]
[EventType "swiss"]
[EventCountry "ITA"]
[SourceTitle "playchess.com"]
[Source "ChessBase"]
[SourceQuality "1"]
[TimeControl "40/5400+30:1800+30"]

1. e4 {[%emt 0:00:03]} c5 {[%emt 0:00:09]} 2. Nf3 {[%emt 0:00:10]} e6 {[%emt 0:00:07]} 3. c3 {[%emt 0:01:24]} d5 {[%emt 0:00:10]} 4. exd5 {[%emt 0:00:46]} Qxd5 {[%emt 0:00:14]} 5. d4 {[%emt 0:04:01]} Nf6 {[%emt 0:00:22]} 6. Nbd2 {[%emt 0:01:06]} Nc6 {[%emt 0:03:28]} 7. Bc4 {[%emt 0:03:42]} Qd8 {[%emt 0:02:28]} 8. Nb3 {[%emt 0:01:53]} cxd4 {[%emt 0:00:13]} 9. Nbxd4 {[%emt 0:00:20]} Bc5 {[%emt 0:03:56]} 10. Bg5 {[%emt 0:03:15]} Nxd4 {[%emt 0:06:13]} 11. Nxd4 {[%emt 0:03:13]} O-O {[%emt 0:10:22]} 12. O-O {[%emt 0:01:41]} Qc7 {[%emt 0:02:44]} 13. Bd3 {[%emt 0:06:13]} Bxd4 {[%emt 0:13:57]} 14. cxd4 {[%emt 0:00:19]} Qa5 {[%emt 0:01:52]} 15. Bf4 {[%emt 0:08:58]} Bd7 {[%emt 0:05:59]} 16. Re1 {[%emt 0:06:22]} Qh5 {[%emt 0:08:03]} 17. f3 {[%emt 0:10:06]} Nd5 {[%emt 0:07:58]} 18. Bg3 {[%emt 0:19:56]} Qg5 {[%emt 0:02:31]} 19. Re4 {[%emt 0:04:06]} Bc6 {[%emt 0:07:18]} 20. Rh4 {[%emt 0:03:33]} h6 {[%emt 0:02:07]} 21. Qe1 {[%emt 0:03:32]} Qe3+ {[%emt 0:01:05]} 22. Qxe3 {[%emt 0:00:48]} Nxe3 {[%emt 0:00:06]} 23. Rh5 {[%emt 0:05:58]} Rfd8 {[%emt 0:02:42]} 24. Re1 {[%emt 0:00:42]} Nd5 {[%emt 0:00:42]} 25. Bf2 {[%emt 0:01:57]} Nf4 {[%emt 0:00:10]} *

[Event "FIDE WYCC Girls U18 2023"]
[Site "Montesilvano"]
[Date "2023.11.23"]
[Round "10.27"]
[White "Tsapaki, Asimenia"]
[Black "Alexandrova, Angelina"]
[Result "*"]
[WhiteElo "1702"]
[BlackElo "1814"]
[Annotator "NA RC"]
[PlyCount "49"]
[EventDate "2023.11.13"]
[EventType "swiss"]
[EventCountry "ITA"]
[SourceTitle "playchess.com"]
[Source "ChessBase"]
[SourceQuality "1"]
[TimeControl "40/5400+30:1800+30"]

1. e4 {[%emt 0:00:10]} e6 {[%emt 0:00:17]} 2. d4 {[%emt 0:00:19]} d5 {[%emt 0:00:03]} 3. Nc3 {[%emt 0:00:10]} Bb4 {[%emt 0:00:04]} 4. Nge2 {[%emt 0:00:06]} dxe4 {[%emt 0:00:15]} 5. a3 {[%emt 0:00:07]} Bxc3+ {[%emt 0:00:14]} 6. Nxc3 {[%emt 0:00:09]} Nc6 {[%emt 0:00:16]} 7. d5 {[%emt 0:00:17]} exd5 {[%emt 0:00:34]} 8. Qxd5 {[%emt 0:00:09]} Be6 {[%emt 0:25:31]} 9. Qxe4 {[%emt 0:00:29]} Nf6 {[%emt 0:04:33]} 10. Qa4 {[%emt 0:00:43]} O-O {[%emt 0:01:05]} 11. Bd2 {[%emt 0:01:04]} a6 {[%emt 0:10:54]} 12. O-O-O {[%emt 0:02:19]} Qe7 {[%emt 0:07:23]} 13. Bg5 {[%emt 0:03:17]} h6 {[%emt 0:04:32]} 14. Bh4 {[%emt 0:02:24]} g5 {[%emt 0:03:02]} 15. Bg3 {[%emt 0:08:28]} Rfb8 {[%emt 0:05:23]} 16. Ne4 {[%emt 0:05:31]} Ng4 {[%emt 0:06:01]} 17. c4 {[%emt 0:12:19]} b5 {[%emt 0:00:07]} 18. cxb5 {[%emt 0:01:37]} axb5 {[%emt 0:00:06]} 19. Qc2 {[%emt 0:00:28]} b4 {[%emt 0:11:06]} 20. a4 {[%emt 0:10:51]} Bf5 {[%emt 0:09:40]} 21. Bd3 {[%emt 0:09:02]} Nd4 {[%emt 0:00:08]} 22. Qc4 {[%emt 0:00:38]} Rd8 {[%emt 0:00:27]} 23. Nc5 {[%emt 0:14:18]} Bxd3 {[%emt 0:08:19]} 24. Rxd3 {[%emt 0:06:04]} Ne2+ {[%emt 0:00:21]} 25. Kb1 {[%emt 0:00:16]} *

[Event "FIDE WYCC Girls U18 2023"]
[Site "Montesilvano"]
[Date "2023.11.23"]
[Round "10.28"]
[White "Gavrileva, Anna"]
[Black "Hernandez Ortega, Carolina"]
[Result "0-1"]
[ECO "A46"]
[WhiteElo "1316"]
[BlackElo "1796"]
[Annotator "NA RC"]
[PlyCount "62"]
[EventDate "2023.11.13"]
[EventType "swiss"]
[EventCountry "ITA"]
[SourceTitle "playchess.com"]
[Source "ChessBase"]
[SourceQuality "1"]
[TimeControl "40/5400+30:1800+30"]

1. d4 {[%emt 0:00:02]} Nf6 {[%emt 0:00:26]} 2. Nf3 {[%emt 0:00:03]} e6 {[%emt 0:00:10]} 3. Bf4 {[%emt 0:00:06]} b6 {[%emt 0:00:22]} 4. e3 {[%emt 0:00:11]} Bb7 {[%emt 0:00:16]} 5. Bd3 {[%emt 0:00:04]} Be7 {[%emt 0:00:24]} 6. h3 {[%emt 0:00:11]} d6 {[%emt 0:00:34]} 7. Nbd2 {[%emt 0:00:36]} Nbd7 {[%emt 0:00:35]} 8. O-O {[%emt 0:00:22]} O-O {[%emt 0:00:57]} 9. c3 {[%emt 0:02:53]} c5 {[%emt 0:01:29]} 10. Qe2 {[%emt 0:00:35]} Qc7 {[%emt 0:01:18]} 11. Bh2 {[%emt 0:01:05]} Rfe8 {[%emt 0:02:04]} 12. e4 {[%emt 0:01:43]} cxd4 {[%emt 0:03:24]} 13. cxd4 {[%emt 0:00:13]} e5 {[%emt 0:00:06]} 14. Rac1 {[%emt 0:01:47]} Qb8 {[%emt 0:00:07]} 15. Rfd1 {[%emt 0:06:26]} Bf8 {[%emt 0:06:11]} 16. dxe5 {[%emt 0:06:10]} dxe5 {[%emt 0:02:56]} 17. Bb5 {[%emt 0:12:24]} Re7 {[%emt 0:02:50]} 18. b4 {[%emt 0:11:58]} a6 {[%emt 0:10:59]} 19. Bxd7 {[%emt 0:08:41]} Nxd7 {[%emt 0:00:08]} 20. Nc4 {[%emt 0:00:14]} b5 {[%emt 0:05:14]} 21. Rxd7 {[%emt 0:08:01]} Rxd7 {[%emt 0:05:40]} 22. Nb6 {[%emt 0:00:23]} Rc7 {[%emt 0:07:44]} 23. Rd1 {[%emt 0:11:34]} Qe8 {[%emt 0:02:04]} 24. Nxa8 {[%emt 0:02:35]} Bxa8 {[%emt 0:00:07]} 25. a3 {[%emt 0:00:25]} f6 {[%emt 0:04:16]} 26. Ne1 {[%emt 0:01:43]} Qc6 {[%emt 0:07:59]} 27. f3 {[%emt 0:00:43]} Qc4 {[%emt 0:03:05]} 28. Qd2 {[%emt 0:06:18]} a5 {[%emt 0:02:00]} 29. bxa5 {[%emt 0:02:02]} Bc5+ {[%emt 0:00:11]} 30. Kh1 {[%emt 0:00:36]} Qf1+ {[%emt 0:00:08]} 31. Bg1 {[%emt 0:00:32]} Qxg1# 0-1